bitfinex-derivatives/quotes_SOLF0:USTF0_20241230
["timestamp","ask_amount","ask_price","bid_price","bid_amount"]
[1735569100865,2.6424,189.55,189.45,19.20731454]
[1735569101669,4.6461,189.59,189.45,19.20731454]
[1735569102055,4.6461,189.59,189.48,19.20731454]
[1735569102259,4.6461,189.59,189.49,3.46]
[1735569102260,3.0489,189.59,189.49,3.46]
[1735569103457,3.0489,189.59,189.39,28.99376396]
[1735569103662,3.0489,189.59,189.44,19.20731454]
[1735569104063,2.642,189.57,189.44,19.20731454]
[1735569104467,3.0489,189.59,189.44,22.66731454]
[1735569104659,2.6426,189.53,189.49,2.643]
[1735569104860,2.6426,189.53,189.44,22.66731454]
[1735569105070,3.46,189.55,189.41,3.46]
[1735569105364,3.46,189.55,189.4,19.20731454]
[1735569105564,3.46,189.55,189.39,7.24844099]
[1735569105765,19.20731454,189.54,189.39,7.24844099]
[1735569106267,2.6435,189.47,189.42,2.644]
[1735569106476,3.46,189.47,189.36,19.20731454]
[1735569106666,3.46,189.47,189.35,7.24844099]
[1735569106965,2.644,189.43,189.35,7.24844099]
[1735569107163,4.6203,189.46,189.35,7.24844099]
[1735569107758,23.82761454,189.46,189.27,249.05510677]
[1735569107959,2.6443,189.41,189.35,2.645]
[1735569108167,3.46,189.4,189.35,2.645]
[1735569108366,3.46,189.4,189.28,3.46]
[1735569108567,3.46,189.4,189.36,2.6449]
[1735569109165,2.644,189.44,189.38,2.6446]
[1735569109470,3.46,189.43,189.38,2.6446]
[1735569109671,3.46,189.43,189.31,19.20731454]
[1735569109864,7.264,189.46,189.31,19.20731454]
[1735569110169,3.46,189.45,189.35,19.20731454]
[1735569110373,4.6203,189.46,189.35,19.20731454]
[1735569111170,3.46,189.47,189.35,19.20731454]
[1735569111372,3.46,189.49,189.35,19.20731454]
[1735569111972,3.46,189.49,189.42,2.6441]
[1735569112270,3.46,189.49,189.35,19.20731454]
[1735569112469,2.6436,189.46,189.41,2.6443]
[1735569112669,3.1426,189.48,189.35,19.20731454]
[1735569113064,6.6026,189.48,189.43,2.6439]
[1735569113267,3.46,189.5,189.38,19.20731454]
[1735569113662,3.46,189.5,189.4,2.6443]
[1735569114672,3.46,189.5,189.33,3.46]
[1735569114874,19.20731454,189.48,189.32,22.66731454]
[1735569115174,1.5245,189.47,189.36,2.645]
[1735569115375,2.6439,189.44,189.36,2.645]
[1735569115576,4.9504,189.43,189.36,2.645]
[1735569115873,4.9504,189.43,189.32,22.66731454]
[1735569117070,4.9504,189.43,189.39,2.6444]
[1735569117271,1.4904,189.43,189.32,22.66731454]
[1735569117779,2.6443,189.41,189.32,22.66731454]
[1735569117968,1.4904,189.43,189.37,2.6447]
[1735569118174,1.4904,189.43,189.32,22.66731454]
[1735569118475,4.1344,189.43,189.32,22.66731454]
[1735569118768,1.4904,189.43,189.32,22.66731454]
[1735569118974,2.6442,189.42,189.32,22.66731454]
[1735569120175,1.4904,189.43,189.32,22.66731454]
[1735569120375,1.4904,189.43,189.32,19.20731454]
[1735569121378,2.6446,189.39,189.34,2.6451]
[1735569121580,3.46,189.39,189.27,24.47677698]
[1735569121778,1.6016,189.38,189.27,24.47677698]
[1735569122073,1.6016,189.38,189.3,2.6458]
[1735569122074,2.6454,189.34,189.3,2.6458]
[1735569122278,3.1444,189.38,189.3,2.6458]
[1735569122876,3.1444,189.38,189.27,24.47677698]
[1735569123279,1.6016,189.38,189.36,2.645]
[1735569123479,1.4904,189.43,189.28,3.46]
[1735569123679,7.5945,189.43,189.31,19.20731454]
[1735569123880,3.46,189.47,189.34,19.20731454]
[1735569124182,3.46,189.47,189.34,22.66731454]
[1735569124874,2.6442,189.42,189.38,2.6447]
[1735569125383,2.6442,189.42,189.39,2.6445]
[1735569125782,2.6442,189.43,189.34,3.46]
[1735569126077,3.46,189.47,189.34,22.66731454]
[1735569126284,4.2013,189.48,189.37,19.20731454]
[1735569126482,4.2013,189.48,189.44,2.6438]
[1735569126682,1.5579,189.48,189.39,3.46]
[1735569126877,2.6443,189.41,189.33,3.46]
[1735569127081,19.20731454,189.44,189.27,24.47677698]
[1735569127283,1.4946,189.4,189.27,27.93677698]
[1735569127479,2.645,189.37,189.27,27.93677698]
[1735569127673,1.4813,189.39,189.27,27.93677698]
[1735569128178,4.9546,189.4,189.37,2.6448]
[1735569128376,1.5428,189.49,189.32,3.46]
[1735569128377,3.46,189.45,189.32,3.46]
[1735569128678,3.46,189.45,189.37,2.6448]
[1735569128987,2.6444,189.41,189.37,2.6448]
[1735569129378,3.46,189.45,189.36,2.645]
[1735569129978,3.46,189.45,189.32,3.46]
[1735569130178,2.6445,189.4,189.35,2.6451]
[1735569131387,3.1133,189.48,189.34,19.20731454]
[1735569131782,3.1133,189.48,189.32,3.46]
[1735569132188,19.20731454,189.46,189.32,3.46]
[1735569132779,19.20731454,189.46,189.28,19.20731454]
[1735569132987,19.20731454,189.43,189.27,8.72946244]
[1735569133187,2.645,189.37,189.32,2.6456]
[1735569133381,3.46,189.42,189.27,8.72946244]
[1735569133590,1.509,189.41,189.27,8.72946244]
[1735569133989,2.6449,189.37,189.32,2.6455]
[1735569134186,2.6449,189.37,189.27,8.72946244]
[1735569134886,2.6449,189.37,189.3,2.6459]
[1735569135088,2.6448,189.38,189.27,8.72946244]
[1735569135284,3.0924,189.4,189.25,22.66731454]
[1735569135788,22.29971454,189.4,189.25,22.66731454]
[1735569136186,2.6451,189.36,189.29,2.6459]
[1735569136383,3.0924,189.4,189.25,22.66731454]
[1735569137193,2.6452,189.35,189.29,2.6459]
[1735569137392,2.6452,189.35,189.25,22.66731454]
[1735569137591,3.0924,189.4,189.25,22.66731454]
[1735569137791,3.46,189.36,189.25,22.66731454]
[1735569138091,2.6455,189.33,189.28,2.6461]
[1735569138293,3.46,189.36,189.22,19.20731454]
[1735569138482,2.6458,189.31,189.26,2.6463]
[1735569138683,2.6458,189.31,189.22,19.20731454]
[1735569138886,2.6458,189.31,189.21,3.46]
[1735569139495,3.46,189.36,189.21,3.46]
[1735569139693,2.6459,189.3,189.26,2.6463]
[1735569139988,3.46,189.36,189.21,3.46]
[1735569140195,3.46,189.36,189.23,19.20731454]
[1735569140492,3.46,189.36,189.29,2.6459]
[1735569140987,2.6453,189.34,189.29,2.6459]
[1735569141183,3.46,189.36,189.29,2.6459]
[1735569141386,3.46,189.36,189.28,2.6461]
[1735569141691,2.6455,189.33,189.28,2.6461]
[1735569142394,2.9976,189.32,189.23,22.66731454]
[1735569142691,4.5705,189.32,189.23,22.66731454]
[1735569146097,4.5705,189.32,189.15,1.7851]
[1735569146692,2.6464,189.27,189.22,2.6468]
[1735569147695,4.5705,189.32,189.19,2.6473]
[1735569147895,19.20731454,189.3,189.15,1.59]
[1735569148090,19.20731454,189.27,189.11,28.99376396]
[1735569148297,19.20731454,189.27,189.15,2.6479]
[1735569148996,2.6473,189.2,189.15,2.6479]
[1735569149897,19.20731454,189.27,189.15,2.6479]
[1735569150197,2.6474,189.19,189.14,2.6481]
[1735569150395,19.20731454,189.24,189.1,1.5919]
[1735569150597,2.6476,189.18,189.13,2.6482]
[1735569150792,4.7326,189.23,189.13,2.6482]
[1735569150989,4.7326,189.23,189.1,1.5919]
[1735569151192,19.20731454,189.18,189.05,7.24844099]
[1735569151599,19.20731454,189.18,189.01,28.99376396]
[1735569151795,19.20731454,189.18,189.02,19.20731454]
[1735569151995,19.20731454,189.21,189.05,19.20731454]
[1735569152199,19.20731454,189.21,189.02,19.20731454]
[1735569152394,19.20731454,189.21,189.02,20.70431454]
[1735569152698,19.20731454,189.21,189.05,19.20731454]
[1735569152998,4.7326,189.23,189.08,19.20731454]
[1735569153399,1.6087,189.23,189.17,2.6476]
[1735569153697,1.6087,189.23,189.11,19.20731454]
[1735569153892,2.6473,189.2,189.14,2.6481]
[1735569154088,1.6087,189.23,189.08,19.20731454]
[1735569154290,1.6087,189.23,189.09,1.4909]
[1735569154500,2.6471,189.21,189.09,1.4909]
[1735569154689,1.6087,189.23,189.09,1.4909]
[1735569155290,1.6087,189.23,189.03,0.1945]
[1735569155491,1.5867,189.22,189.05,19.20731454]
[1735569155693,19.20731454,189.21,189.03,1.6854]
[1735569155892,19.20731454,189.21,189.02,19.20731454]
[1735569156296,12.10668434,189.17,189.04,12.10668434]
[1735569156495,12.10668434,189.2,189.07,12.10668434]
[1735569156993,12.10668434,189.2,189.09,2.6488]
[1735569157192,12.10668434,189.2,189.07,12.10668434]
[1735569157691,12.10668434,189.2,189.08,2.6488]
[1735569158094,2.6482,189.13,189.08,2.6488]
[1735569158294,2.6482,189.13,189.07,12.10668434]
[1735569158492,2.6482,189.13,189.09,2.6488]
[1735569159088,12.10668434,189.2,189.07,12.10668434]
[1735569159293,1.5867,189.22,189.07,2.649]
[1735569159294,2.6486,189.11,189.07,2.649]
[1735569159496,3.5,189.15,189.04,12.10668434]
[1735569159698,2.6482,189.13,189.08,2.6488]
[1735569159999,3.5,189.19,189.07,12.10668434]
[1735569160299,3.5,189.19,189.08,2.6489]
[1735569161395,3.5,189.19,189.07,12.10668434]
[1735569161599,2.6486,189.11,189.04,12.10668434]
[1735569162193,3.5,189.13,189.04,12.10668434]
[1735569162397,2.6489,189.08,189.05,2.6493]
[1735569162598,1.554,189.12,189.0,12.10668434]
[1735569162898,2.649,189.08,189.04,2.6495]
[1735569163201,3.1141,189.12,189.0,12.10668434]
[1735569164102,3.5,189.13,189.04,12.10668434]
[1735569164600,6.1483,189.13,189.04,12.10668434]
[1735569164802,3.5,189.13,189.03,3.5]
[1735569165001,3.5,189.13,189.02,12.10668434]
[1735569165201,2.6491,189.07,189.03,2.6495]
[1735569165602,2.649,189.08,189.04,2.6494]
[1735569165804,3.1414,189.12,189.02,12.10668434]
[1735569166003,1.5107,189.12,189.02,12.10668434]
[1735569167103,1.6307,189.16,189.05,12.10668434]
[1735569167304,5.1307,189.16,189.05,12.10668434]
[1735569167497,2.6481,189.14,189.05,12.10668434]
[1735569167799,5.1307,189.16,189.02,12.10668434]
[1735569167999,2.6489,189.09,189.05,2.6492]
[1735569168202,3.5,189.11,188.99,12.10668434]
[1735569168604,2.6491,189.08,189.04,2.6494]
[1735569169009,3.5,189.11,189.04,2.6494]
[1735569169304,2.6491,189.07,189.04,2.6494]
[1735569169807,15.60668434,189.11,189.02,2.6496]
[1735569170102,15.60668434,189.11,188.99,12.10668434]
[1735569170306,15.60668434,189.11,188.99,2.6501]
[1735569170606,15.60668434,189.11,188.96,12.10668434]
[1735569170804,12.10668434,189.08,188.96,12.10668434]
[1735569171010,3.1362,189.07,188.98,2.6502]
[1735569171308,3.5,189.06,188.98,2.6502]
[1735569171607,3.5,189.06,188.96,12.10668434]
[1735569172095,3.5,189.06,189.02,2.6497]
[1735569172501,3.5,189.06,189.01,2.6498]
[1735569173299,3.5,189.06,188.97,12.10668434]
[1735569174001,3.5,189.06,188.99,2.6501]
[1735569174205,3.5,189.06,188.97,12.10668434]
[1735569174405,1.6331,189.07,189.0,12.10668434]
[1735569174605,6.1489,189.09,189.02,2.6497]
[1735569174802,3.5,189.09,188.94,0.1971]
[1735569175009,3.5,189.09,188.97,12.10668434]
[1735569175202,3.5,189.09,189.0,2.65]
[1735569175406,2.6493,189.06,188.97,12.10668434]
[1735569175811,4.2238,189.08,188.97,12.10668434]
[1735569176309,1.5748,189.08,188.97,15.60668434]
[1735569176510,4.2238,189.08,188.97,15.60668434]
[1735569176707,1.5748,189.08,188.97,15.60668434]
[1735569176910,1.5748,189.08,189.05,2.6493]
[1735569177510,4.2238,189.08,189.04,2.6494]
[1735569177710,1.5748,189.08,189.0,12.10668434]
[1735569178310,2.6491,189.07,189.0,12.10668434]
[1735569178612,2.6491,189.07,188.97,15.60668434]
[1735569178813,2.6491,189.07,189.03,2.6495]
[1735569179009,1.5748,189.08,188.97,15.60668434]
[1735569179207,3.5,189.07,188.94,12.10668434]
[1735569179607,2.6495,189.04,188.94,12.10668434]
[1735569179804,3.5,189.07,189.02,2.6497]
[1735569180114,2.6495,189.04,188.94,12.10668434]
[1735569180414,3.5,189.07,188.94,12.10668434]
[1735569180613,2.6494,189.05,189.01,2.6498]
[1735569180908,13.68148434,189.08,188.94,12.10668434]
[1735569181107,5.0748,189.08,188.97,12.10668434]
[1735569181303,1.5748,189.08,188.97,15.60668434]
[1735569181608,12.10668434,189.14,189.0,12.10668434]
[1735569182007,3.5,189.13,189.0,12.10668434]
[1735569182412,2.6485,189.11,189.0,12.10668434]
[1735569182613,3.5,189.12,189.0,12.10668434]
[1735569182818,2.649,189.08,188.98,0.198]
[1735569183315,12.10668434,189.11,188.94,29.1744979]
[1735569183514,12.10668434,189.08,188.95,15.70668434]
[1735569183816,1.6337,189.07,188.95,15.70668434]
[1735569184005,2.6496,189.03,189.0,2.65]
[1735569185005,2.6495,189.04,189.0,2.65]
[1735569186920,4.7011,189.07,188.95,15.70668434]
[1735569187218,3.1103,189.07,188.95,15.70668434]
[1735569187408,12.10668434,189.11,188.98,12.10668434]
[1735569187811,3.6,189.12,189.01,12.10668434]
[1735569188006,3.6,189.12,189.08,2.6488]
[1735569188212,3.6,189.12,189.01,15.70668434]
[1735569188613,3.6,189.12,189.09,2.6487]
[1735569188817,3.6,189.13,189.01,15.70668434]
[1735569189220,6.2482,189.13,189.01,15.70668434]
[1735569189414,3.6,189.13,189.01,15.70668434]
[1735569189917,12.10668434,189.11,189.01,3.6]
[1735569190417,12.10668434,189.11,189.08,2.6488]
[1735569191217,2.6482,189.14,189.01,15.70668434]
[1735569191418,2.6482,189.14,189.02,1.5672]
[1735569192115,2.6483,189.13,189.09,2.6487]
[1735569192319,12.10668434,189.12,189.02,1.5672]
[1735569192518,2.6486,189.11,189.02,1.5672]
[1735569192712,12.10668434,189.12,189.02,1.5672]
[1735569193022,2.6483,189.13,189.05,2.6492]
[1735569193318,12.10668434,189.15,189.02,1.5672]
[1735569193521,1.6271,189.16,189.04,12.10668434]
[1735569193719,15.70668434,189.18,189.14,2.648]
[1735569194416,2.6477,189.17,189.14,2.648]
[1735569194610,15.70668434,189.18,189.14,2.648]
[1735569194815,15.70668434,189.18,189.04,12.10668434]
[1735569195118,12.10668434,189.15,189.04,10.89362447]
[1735569195517,2.6484,189.12,189.08,2.6488]
[1735569195921,2.6487,189.1,189.07,2.649]
[1735569196221,3.2003,189.14,189.04,7.29362447]
[1735569196418,12.10668434,189.12,189.04,7.29362447]
[1735569196714,3.6,189.12,189.02,1.5672]
[1735569196913,15.70668434,189.12,188.99,32.9699979]
[1735569197113,15.70668434,189.12,189.08,2.6489]
[1735569197615,18.35518434,189.12,188.99,32.9699979]
[1735569197821,15.70668434,189.12,188.99,32.9699979]
[1735569198016,15.70668434,189.12,188.99,29.3699979]
[1735569198321,2.6489,189.08,189.05,2.6493]
[1735569198509,2.6489,189.08,188.99,29.1744979]
[1735569198710,2.6489,189.08,188.98,15.70668434]
[1735569198914,2.6489,189.08,189.05,2.6493]
[1735569199214,2.6491,189.07,188.98,12.10668434]
[1735569199418,2.6491,189.07,189.03,2.6496]
[1735569199718,2.6492,189.06,189.03,2.6496]
[1735569200819,2.6492,189.06,188.98,12.10668434]
[1735569201517,2.6492,189.06,189.02,2.6497]
[1735569201719,2.6491,189.07,189.02,2.6497]
[1735569202021,12.10668434,189.09,188.97,1.5978]
[1735569202516,12.10668434,189.09,189.01,2.6498]
[1735569202724,2.6494,189.05,189.01,2.6498]
[1735569203018,15.70668434,189.06,189.0,2.65]
[1735569203224,15.70668434,189.06,188.94,44.88118224]
[1735569204028,15.70668434,189.06,188.94,12.10668434]
[1735569204224,1.5242,189.05,188.94,12.10668434]
[1735569204418,2.6499,189.02,188.97,2.6504]
[1735569204625,12.10668434,189.03,188.97,2.6504]
[1735569205023,2.65,189.01,188.97,2.6504]
[1735569205623,3.6,189.01,188.9,12.10668434]
[1735569205823,3.6,189.01,188.89,29.1744979]
[1735569206324,2.6503,188.98,188.94,2.6508]
[1735569206721,12.10668434,189.03,188.87,12.10668434]
[1735569206917,3.6,189.02,188.87,12.10668434]
[1735569207122,3.6,189.01,188.87,12.10668434]
[1735569207326,2.6504,188.98,188.94,2.6508]
[1735569207625,2.6504,188.98,188.9,12.10668434]
[1735569208422,3.6,189.01,188.86,7.29362447]
[1735569208622,3.6,189.01,188.88,12.10668434]
[1735569209128,2.6504,188.98,188.95,2.6507]
[1735569209527,2.6504,188.98,188.88,12.10668434]
[1735569209727,2.6504,188.98,188.94,2.6508]
[1735569210534,3.6,189.01,188.94,2.6508]
[1735569210724,2.6505,188.97,188.94,2.6508]
[1735569211330,2.6504,188.98,188.94,2.6508]
[1735569213025,2.6505,188.97,188.88,12.10668434]
[1735569213220,12.10668434,189.0,188.88,12.10668434]
[1735569213221,3.56,188.96,188.88,12.10668434]
[1735569213530,3.56,188.96,188.86,1.5188]
[1735569213726,2.6508,188.95,188.92,2.6511]
[1735569214226,2.6509,188.94,188.9,2.6514]
[1735569214426,1.5202,188.96,188.86,1.5188]
[1735569214625,3.56,188.95,188.86,1.5188]
[1735569214826,6.2108,188.95,188.91,2.6512]
[1735569215024,3.56,188.95,188.91,2.6512]
[1735569215224,3.56,188.95,188.86,1.5188]
[1735569215430,2.651,188.94,188.9,2.6514]
[1735569216828,2.6511,188.93,188.9,2.6514]
[1735569217330,2.6511,188.93,188.89,2.6515]
[1735569217524,2.6511,188.93,188.84,12.30168434]
[1735569217525,3.56,188.95,188.84,12.30168434]
[1735569217721,3.56,188.95,188.91,2.6512]
[1735569218121,2.6509,188.94,188.91,2.6512]
[1735569218522,2.6509,188.94,188.84,12.30168434]
[1735569218728,3.56,188.95,188.84,12.30168434]
[1735569219324,2.651,188.94,188.84,12.30168434]
[1735569219533,2.651,188.94,188.84,0.195]
[1735569219927,3.56,188.95,188.84,0.195]
[1735569220330,3.56,188.95,188.86,12.10668434]
[1735569220525,3.56,188.96,188.86,12.10668434]
[1735569220730,3.56,188.98,188.86,12.10668434]
[1735569220931,6.2104,188.98,188.94,2.6509]
[1735569221130,1.5121,188.99,188.89,12.10668434]
[1735569221539,4.1623,188.99,188.95,2.6507]
[1735569222939,2.6506,188.97,188.92,2.6511]
[1735569223230,3.56,188.96,188.87,3.56]
[1735569223738,3.56,188.96,188.93,2.651]
[1735569223926,3.56,188.96,188.87,3.56]
[1735569224126,2.651,188.93,188.89,2.6516]
[1735569224330,12.10668434,188.94,188.83,7.29362447]
[1735569224733,2.6513,188.91,188.86,2.652]
[1735569224940,12.10668434,188.94,188.86,2.652]
[1735569225132,2.6514,188.91,188.86,2.652]
[1735569225329,12.10668434,188.87,188.8,29.1744979]
[1735569225541,15.66668434,188.91,188.8,29.1744979]
[1735569225542,12.10668434,188.84,188.8,29.1744979]
[1735569225731,2.6526,188.82,188.8,29.1744979]
[1735569226131,12.10668434,188.81,188.8,2.8253979]
[1735569226438,12.10668434,188.81,188.75,29.30968453]
[1735569226738,12.10668434,188.77,188.75,29.30968453]
[1735569226936,2.6534,188.76,188.75,29.30968453]
[1735569227141,12.10668434,188.77,188.72,87.52349373]
[1735569227444,2.6538,188.73,188.72,78.29359373]
[1735569228038,14.76048434,188.73,188.71,35.65134603]
[1735569228240,23.25280626,188.72,188.71,1.12759641]
[1735569228439,2.6541,188.71,188.7,176.52398548]
[1735569228641,55.12,188.76,188.62,22.32816778]
[1735569228642,4.0,188.76,188.62,22.32816778]
[1735569228843,19.47280626,188.71,188.62,22.32816778]
[1735569229049,19.47280626,188.72,188.62,22.32816778]
[1735569229540,4.0,188.71,188.62,22.32816778]
[1735569229846,6.6542,188.71,188.62,22.32816778]
[1735569230047,2.6542,188.71,188.62,22.32816778]
[1735569230238,7.23029521,188.73,188.66,2.6548]
[1735569230431,7.23029521,188.73,188.67,1.5742]
[1735569230939,2.654,188.72,188.67,1.5742]
[1735569231241,11.23029521,188.75,188.63,1.5205]
[1735569231443,19.47280626,188.74,188.63,1.5205]
[1735569231638,19.47280626,188.71,188.62,22.32816778]
[1735569231935,26.70310147,188.71,188.62,22.32816778]
[1735569232338,19.47280626,188.68,188.62,22.32816778]
[1735569232543,4.0,188.67,188.62,22.32816778]
[1735569232739,2.6551,188.64,188.62,22.32816778]
[1735569232937,4.0,188.67,188.62,22.32816778]
[1735569233138,28.92118085,188.65,188.55,19.47280626]
[1735569233338,31.57628085,188.65,188.56,4.2892]
[1735569233539,32.92118085,188.67,188.56,1.6331]
[1735569233843,4.0,188.67,188.57,2.6561]
[1735569234035,28.92118085,188.69,188.58,19.47280626]
[1735569234440,28.92118085,188.69,188.59,1.5168]
[1735569234634,4.0,188.72,188.59,1.5168]
[1735569235036,2.6542,188.71,188.64,2.6551]
[1735569235242,4.0,188.72,188.65,1.5893]
[1735569235538,2.6545,188.68,188.65,1.5893]
[1735569235745,4.0,188.72,188.65,1.5893]
[1735569236242,2.6543,188.71,188.65,1.5893]
[1735569237140,2.6543,188.7,188.65,1.5893]
[1735569237944,2.6543,188.7,188.64,2.33335158]
[1735569238142,28.92118085,188.72,188.61,19.47280626]
[1735569238440,57.84236172,188.73,188.65,4.0]
[1735569238441,28.92118085,188.73,188.65,4.0]
[1735569238635,31.57498085,188.73,188.67,2.6547]
[1735569238839,28.92118085,188.73,188.66,4.0]
[1735569239235,2.6537,188.74,188.65,2.6549]
[1735569239440,7.23029521,188.77,188.65,2.6549]
[1735569239643,28.92118085,188.75,188.62,4.0]
[1735569239944,28.92118085,188.75,188.62,23.47280626]
[1735569240145,28.92118085,188.75,188.65,19.47280626]
[1735569240445,28.92118085,188.75,188.62,23.47280626]
[1735569240640,19.47280626,188.76,188.62,4.0]
[1735569241136,26.70310147,188.76,188.66,2.6548]
[1735569241343,26.70310147,188.76,188.62,4.0]
[1735569241849,7.23029521,188.74,188.62,4.0]
[1735569242043,19.47280626,188.73,188.62,4.0]
[1735569242348,19.47280626,188.7,188.6,1.4942]
[1735569242738,7.23029521,188.7,188.57,4.0]
[1735569243143,7.23029521,188.7,188.58,1.4766]
[1735569243345,28.92118085,188.75,188.69,2.6544]
[1735569243545,28.92118085,188.75,188.7,1.4766]
[1735569243847,28.92118085,188.75,188.7,5.4766]
[1735569244044,28.92118085,188.75,188.7,1.4766]
[1735569244250,19.47280626,188.76,188.65,4.0]
[1735569244548,2.6541,188.71,188.65,4.0]
[1735569244943,19.47280626,188.76,188.66,2.6548]
[1735569245539,2.654,188.72,188.66,2.6548]
[1735569245938,2.654,188.72,188.67,2.6547]
[1735569246350,19.47280626,188.76,188.63,5.4766]
[1735569247549,2.6541,188.72,188.63,5.4766]
[1735569247747,19.47280626,188.76,188.63,5.4766]
[1735569247948,2.6533,188.78,188.69,2.6543]
[1735569248144,23.47280626,188.82,188.64,3.118]
[1735569248549,2.6531,188.79,188.64,3.118]
[1735569248743,23.47280626,188.82,188.64,3.118]
[1735569248950,19.47280626,188.82,188.66,19.47280626]
[1735569249251,2.653,188.79,188.66,19.47280626]
[1735569249950,2.6529,188.8,188.75,2.6535]
[1735569250154,19.47280626,188.82,188.75,2.6535]
[1735569250454,2.6531,188.78,188.74,2.6537]
[1735569250655,19.47280626,188.82,188.74,2.6537]
[1735569251451,12.48026,188.86,188.78,2.6531]
[1735569251654,31.95306626,188.86,188.78,2.6531]
[1735569251852,31.95306626,188.86,188.72,1.5005]
[1735569252558,31.95306626,188.86,188.73,3.1057]
[1735569252757,12.48026,188.86,188.73,3.1057]
[1735569252951,12.48026,188.86,188.81,2.6527]
[1735569253250,12.48026,188.86,188.77,4.0]
[1735569253449,12.48026,188.86,188.84,2.6523]
[1735569255551,10.02626,188.86,188.85,2.6522]
[1735569255753,20.97190626,188.97,188.84,4.0]
[1735569256054,20.97190626,188.97,188.84,7.1587]
[1735569256854,19.47280626,188.94,188.84,3.1587]
[1735569257152,19.47280626,188.94,188.84,5.811]
[1735569257854,2.6517,188.89,188.85,2.6521]
[1735569258154,19.47280626,188.94,188.84,3.1587]
[1735569258458,2.6514,188.91,188.87,2.6518]
[1735569258761,19.47280626,188.94,188.84,3.1587]
[1735569259060,19.47280626,188.94,188.81,4.0]
[1735569259259,19.47280626,188.91,188.78,3.0707]
[1735569259559,19.47280626,188.88,188.78,3.0707]
[1735569259859,19.47280626,188.88,188.74,4.06]
[1735569260061,19.47280626,188.85,188.74,4.06]
[1735569260360,19.47280626,188.82,188.72,3.0707]
[1735569260554,19.47280626,188.82,188.68,21.87166582]
[1735569260751,19.47280626,188.79,188.68,23.40606582]
[1735569260953,4.06,188.78,188.68,23.40606582]
[1735569261157,23.53280626,188.79,188.68,23.40606582]
[1735569261356,2.6534,188.77,188.68,23.40606582]
[1735569261559,1.5087,188.81,188.68,1.5344]
[1735569261756,4.06,188.77,188.68,1.5344]
[1735569261952,1.5087,188.81,188.68,1.5344]
[1735569262153,4.06,188.8,188.68,1.5344]
[1735569262360,19.47280626,188.82,188.68,5.5944]
[1735569262551,6.7126,188.82,188.68,5.5944]
[1735569262958,4.06,188.82,188.68,5.5944]
[1735569263259,2.653,188.8,188.74,2.6536]
[1735569263655,4.06,188.82,188.68,5.5944]
[1735569263854,4.06,188.82,188.73,2.6537]
[1735569263855,2.6532,188.78,188.73,2.6537]
[1735569264054,23.53280626,188.82,188.68,5.5944]
[1735569264251,23.53280626,188.82,188.68,1.5344]
[1735569265157,19.47280626,188.79,188.68,1.5344]
[1735569265458,1.5575,188.78,188.68,1.5344]
[1735569265761,2.654,188.73,188.68,1.5344]
[1735569266156,6.7136,188.75,188.7,2.6542]
[1735569266356,4.06,188.75,188.68,1.5344]
[1735569266552,4.06,188.75,188.66,1.5618]
[1735569266764,4.06,188.75,188.61,23.53280626]
[1735569266765,4.06,188.75,188.62,3.1337]
[1735569266966,4.06,188.75,188.62,4.7228]
[1735569267166,1.5575,188.78,188.62,4.7228]
[1735569267464,4.06,188.8,188.65,19.47280626]
[1735569267854,6.7129,188.8,188.65,19.47280626]
[1735569268358,6.7129,188.8,188.76,2.6534]
[1735569268760,2.6529,188.8,188.76,2.6534]
[1735569268956,1.4871,188.85,188.79,2.653]
[1735569269361,1.4871,188.85,188.73,3.1339]
[1735569269757,19.47280626,188.88,188.73,3.1339]
[1735569269957,2.6522,188.85,188.73,3.1339]
[1735569270162,23.53280626,188.88,188.73,3.1339]